bitfinex/quotes_ETHUSD_20260114
["timestamp","ask_amount","ask_price","bid_price","bid_amount"]
[1768403635046,0.555,3357.9,3356.5,2.82915203]
[1768403635370,0.555,3357.9,3356.6,11.75194926]
[1768403635746,3.5331368,3357.9,3356.6,8.77274412]
[1768403635945,0.03722675,3357.8,3356.7,1.23127441]
[1768403636245,0.555,3357.9,3356.7,1.23127441]
[1768403636576,0.555,3357.9,3356.8,0.0148142]
[1768403636787,0.555,3357.9,3356.9,2.00607884]
[1768403637149,0.555,3357.9,3357.0,0.01481154]
[1768403637349,1.11,3357.9,3357.1,5.95752286]
[1768403638244,1.11,3357.9,3357.2,0.354]
[1768403639286,1.11,3357.9,3357.3,2.97856305]
[1768403639487,0.555,3358.2,3357.4,0.33325631]
[1768403639656,0.555,3357.9,3357.4,0.33325631]
[1768403640057,0.555,3358.2,3357.4,0.33325631]
[1768403640365,0.002,3357.9,3357.4,0.33325631]
[1768403640561,0.555,3358.4,3357.4,0.33325631]
[1768403640880,0.002,3358.2,3357.5,0.96377931]
[1768403641081,0.555,3358.4,3357.5,0.96377931]
[1768403641288,0.555,3358.4,3357.6,2.97831784]
[1768403641471,0.555,3358.4,3357.4,0.33325631]
[1768403641472,3.53263488,3358.4,3357.4,0.33325631]
[1768403641799,3.53265695,3358.4,3357.4,2.97845671]
[1768403641954,1.11,3358.4,3357.5,2.97839684]
[1768403642152,4.08763262,3358.4,3357.5,2.97839684]
[1768403642353,4.08763262,3358.4,3357.4,2.97846412]
[1768403642790,4.08763262,3358.4,3357.5,2.97839233]
[1768403642973,0.555,3359.4,3357.6,3.42483014]
[1768403643155,2.97693924,3359.2,3357.6,3.42483014]
[1768403643357,6.50915588,3359.0,3357.7,2.97822914]
[1768403643692,6.50915588,3359.0,3357.6,0.59569718]
[1768403643693,3.3672906,3358.9,3357.6,0.59569718]
[1768403643852,3.3672906,3358.9,3357.6,2.97831312]
[1768403644056,6.50915588,3359.0,3357.6,5.95663096]
[1768403644790,10.04123525,3359.0,3357.5,3.33237212]
[1768403645089,10.04123525,3359.0,3356.7,3.06939536]
[1768403645090,3.96019957,3358.9,3357.1,0.354]
[1768403645286,5.95468484,3358.7,3357.1,0.354]
[1768403645595,5.95468484,3358.7,3357.1,6.31148852]
[1768403646185,2.97734242,3358.7,3357.1,3.33276143]
[1768403646363,2.97734242,3358.7,3357.1,9.29028429]
[1768403646569,5.95468484,3358.7,3357.2,1.21046181]
[1768403646864,12.2621033,3358.7,3357.2,1.21046181]
[1768403647188,2.95607604,3358.6,3356.9,2.97889033]
[1768403647486,2.95607604,3358.4,3357.0,3.33284863]
[1768403647667,5.95503944,3358.5,3357.0,3.33192003]
[1768403647867,2.97751972,3358.5,3357.1,0.63257062]
[1768403648190,0.555,3358.7,3357.1,2.81433384]
[1768403648392,3.53237248,3358.7,3357.1,2.81433384]
[1768403649078,6.50974496,3358.7,3357.1,2.81433384]
[1768403649274,3.53237248,3358.7,3357.1,2.81433384]
[1768403649473,1.11,3358.7,3357.3,2.81433384]
[1768403649676,1.11,3358.7,3357.2,6.27417878]
[1768403649874,4.08741672,3358.7,3357.3,0.354]
[1768403650278,7.06483344,3358.7,3357.3,0.354]
[1768403650584,7.06483344,3358.7,3357.2,6.27417878]
[1768403650785,7.06483344,3358.7,3357.3,0.92529759]
[1768403651094,4.08736038,3358.7,3357.4,3.16833384]
[1768403651466,4.08736038,3358.7,3357.3,0.92529759]
[1768403651467,7.06472076,3358.7,3357.3,0.92529759]
[1768403651792,2.95607604,3358.6,3357.2,2.97862088]
[1768403651973,0.41121899,3358.5,3357.4,2.97848586]
[1768403652176,0.0372201,3358.4,3357.3,2.97855824]
[1768403652498,7.61972076,3358.7,3357.4,2.97848143]
[1768403652699,7.99372076,3358.7,3357.4,2.97848143]
[1768403653069,0.002,3358.4,3357.4,2.97848143]
[1768403653264,0.002,3358.4,3357.5,0.354]
[1768403653576,0.002,3358.4,3357.5,3.3324011]
[1768403653774,0.002,3358.4,3357.5,4.02661073]
[1768403654168,0.002,3358.4,3357.5,3.3324011]
[1768403654501,0.557,3358.4,3357.3,0.354]
[1768403655069,0.557,3358.4,3357.5,2.97835565]
[1768403655579,0.557,3358.4,3357.4,5.95695126]
[1768403655781,3.53462241,3358.4,3357.4,2.978456]
[1768403656100,3.53462241,3358.4,3357.5,0.63110164]
[1768403656400,0.557,3358.4,3357.5,0.63110164]
[1768403656804,1.112,3358.4,3357.5,0.63110164]
[1768403657304,7.06728314,3358.4,3357.5,0.63110164]
[1768403657625,13.00100075,3358.4,3356.4,2.81533384]
[1768403657769,2.95607604,3358.3,3356.4,2.81533384]
[1768403657972,2.95607604,3358.2,3356.4,0.001]
[1768403658274,2.95607604,3358.0,3356.5,3.3332344]
[1768403658474,0.374,3357.9,3356.5,3.3332344]
[1768403658772,0.374,3357.9,3356.6,2.97917298]
[1768403659181,0.929,3357.9,3356.6,2.97917298]
[1768403659385,0.929,3357.9,3356.7,0.63135404]
[1768403659589,5.95628088,3357.8,3356.5,3.3332168]
[1768403659966,5.95628088,3357.8,3356.6,2.97920414]
[1768403660172,5.95628088,3357.8,3356.7,2.97904338]
[1768403660473,0.555,3357.9,3356.5,0.354]
[1768403660668,1.11107141,3358.4,3356.8,3.04903636]
[1768403660870,0.03722121,3358.3,3356.8,3.04903636]
[1768403661108,1.14829151,3358.4,3356.8,3.04903636]
[1768403661284,1.11107141,3358.4,3356.8,3.04903636]
[1768403661484,4.08870359,3358.4,3357.0,5.95770032]
[1768403661670,7.62133577,3358.4,3357.1,0.354]
[1768403661880,4.64370359,3358.4,3357.1,0.354]
[1768403662079,1.66607141,3358.4,3357.2,3.22929373]
[1768403662307,1.66607141,3358.4,3357.3,1.26249743]
[1768403663618,1.66607141,3358.4,3357.4,5.95699052]
[1768403664109,2.22107141,3358.4,3357.4,5.95699052]
[1768403665117,5.1986857,3358.4,3357.4,2.97849526]
[1768403665309,2.22107141,3358.4,3357.4,2.97849526]
[1768403665491,2.22107141,3358.4,3357.5,0.78713174]
[1768403665686,5.19872547,3358.4,3357.5,0.78713174]
[1768403665892,5.19872547,3358.4,3357.4,3.33240982]
[1768403666291,5.19872547,3358.4,3357.5,2.97835536]
[1768403666621,5.19868064,3358.4,3357.5,2.97835536]
[1768403666821,0.002,3358.3,3357.5,2.97835536]
[1768403667021,0.002,3358.3,3357.6,0.33323554]
[1768403667394,0.002,3358.3,3357.6,0.34803466]
[1768403667703,0.002,3358.3,3357.7,2.97822914]
[1768403667899,0.002,3358.3,3357.6,3.311518]
[1768403668423,0.002,3358.3,3356.6,3.4098775]
[1768403668424,8.97231233,3358.3,3356.7,3.06939469]
[1768403668731,0.002,3358.3,3357.7,0.09032472]
[1768403669033,0.002,3358.3,3357.3,0.09032472]
[1768403669227,0.557,3358.3,3357.3,0.09032472]
[1768403669519,0.557,3358.3,3356.9,0.09032472]
[1768403669520,3.66006087,3358.3,3356.7,0.354]
[1768403669721,5.95557142,3358.2,3356.9,0.09032472]
[1768403669926,5.95557142,3358.2,3356.9,3.06923733]
[1768403670424,2.97778571,3358.2,3357.0,0.355]
[1768403670603,2.97778571,3358.2,3357.1,0.64031762]
[1768403671114,6.51241029,3358.3,3357.1,0.64031762]
[1768403671421,0.557,3358.3,3357.2,3.49396901]
[1768403671798,1.112,3358.3,3357.3,2.97858398]
[1768403671999,2.77607141,3358.4,3357.3,9.18646169]
[1768403672216,2.77607141,3358.4,3357.3,6.20787771]
[1768403672395,0.03722121,3358.3,3357.3,2.97858398]
[1768403672598,5.75368191,3358.4,3357.4,0.3333584]
[1768403673014,5.75368191,3358.4,3357.5,0.355]
[1768403673708,8.73129241,3358.4,3357.4,0.3333584]
[1768403673909,5.75368191,3358.4,3357.3,0.355]
[1768403674116,8.73129241,3358.4,3357.3,0.355]
[1768403674310,9.28629241,3358.4,3357.3,0.355]
[1768403675429,9.28629241,3358.4,3356.4,0.001]
[1768403675430,3.10306087,3358.3,3356.4,0.001]
[1768403675591,3.10306087,3358.3,3356.5,0.44532472]
[1768403675794,5.95557142,3358.2,3356.7,0.09032472]
[1768403676117,5.95557142,3358.2,3356.8,2.97902764]
[1768403676311,5.95557142,3358.2,3356.9,0.30693524]
[1768403676801,0.03722342,3358.1,3357.0,0.355]
[1768403677012,0.03722342,3358.1,3356.9,0.30693524]
[1768403677207,0.03722342,3358.1,3357.0,0.355]
[1768403677416,9.60085571,3358.2,3357.0,0.355]
[1768403677618,9.60085571,3358.2,3357.0,0.35407141]
[1768403677822,2.97796307,3358.0,3357.0,0.35407141]
[1768403678126,5.95592614,3358.0,3357.1,0.36399103]
[1768403678328,0.02242918,3357.9,3357.2,0.355]
[1768403678632,0.02242918,3357.9,3356.9,0.30693524]
[1768403678799,3.12549005,3357.9,3356.4,2.98031035]
[1768403678998,3.12549005,3357.9,3356.4,0.001]
[1768403679199,3.65806087,3357.9,3356.5,0.355]
[1768403679621,3.65806087,3357.9,3356.4,0.001]
[1768403679819,3.68049005,3357.9,3356.5,0.355]
[1768403680131,3.10306087,3357.6,3356.4,0.001]
[1768403680305,3.12549005,3357.6,3356.4,0.001]
[1768403680504,3.10306087,3357.6,3356.4,0.001]
[1768403680711,3.10306087,3357.6,3357.3,0.001]
[1768403681002,3.10213229,3357.6,3356.4,0.001]
[1768403681218,4.50006626,3357.5,3356.4,0.001]
[1768403681617,5.05506626,3357.5,3356.4,0.001]
[1768403681820,3.10306087,3357.4,3356.4,0.001]
[1768403682019,5.95716796,3357.3,3356.4,0.001]
[1768403682237,2.97852525,3357.4,3356.4,0.001]
[1768403682533,0.555,3357.5,3356.4,0.001]
[1768403682702,0.555,3357.5,3356.4,3.13996901]
[1768403682904,0.555,3357.9,3357.1,3.13896901]
[1768403683105,0.555,3358.2,3357.2,3.49396901]
[1768403684106,1.11,3358.2,3357.3,2.97858398]
[1768403684306,4.08779099,3358.2,3357.2,3.49396901]
[1768403684536,4.08779099,3358.2,3357.3,0.35842937]
[1768403684736,1.11,3358.2,3357.3,0.35842937]
[1768403686449,4.08779967,3358.2,3357.4,0.355]
[1768403686611,4.64279967,3358.2,3357.4,0.355]
[1768403686810,4.64279967,3358.2,3357.4,0.36920356]
[1768403687036,1.665,3358.2,3357.5,0.355]
[1768403687206,1.665,3358.2,3357.4,0.36920356]
[1768403687401,4.64278701,3358.2,3357.4,0.36920356]
[1768403687606,7.62057402,3358.2,3357.1,2.9787248]
[1768403687807,7.62057402,3358.2,3357.2,0.355]
[1768403688027,4.64278701,3358.2,3357.2,0.355]
[1768403688340,4.64278701,3358.2,3357.3,2.978583]
[1768403688540,7.62057402,3358.2,3357.2,0.355]
[1768403688838,7.62057402,3358.2,3356.6,2.97918576]
[1768403689008,8.17557402,3358.2,3356.7,0.355]
[1768403689534,8.17557402,3358.2,3357.0,2.97883338]
[1768403690237,8.17557402,3358.2,3356.7,3.49396901]
[1768403690438,8.17557402,3358.2,3356.8,2.97902764]
[1768403690635,8.17557402,3358.2,3356.9,0.65633214]
[1768403691504,11.70836103,3358.2,3356.9,0.65633214]
[1768403691715,14.80482103,3358.2,3356.7,2.97910953]
[1768403691906,14.80482103,3358.2,3356.8,0.355]
[1768403692109,11.82703402,3358.2,3356.9,2.9789389]
[1768403692310,1.81357604,3358.1,3356.9,3.52847992]
[1768403692718,1.81357604,3358.1,3356.9,0.54954102]
[1768403692918,1.81357604,3358.1,3356.8,2.97899014]
[1768403693120,1.81357604,3358.1,3356.9,0.355]
[1768403693333,8.73057402,3358.2,3356.9,0.355]
[1768403693637,0.002,3357.9,3356.9,0.355]
[1768403694347,0.002,3357.9,3357.0,0.355]
[1768403694713,0.002,3357.9,3357.0,3.33382587]
[1768403695452,3.332,3358.2,3357.1,3.21047119]
[1768403695617,6.30984669,3358.2,3357.2,0.96134719]
[1768403696118,6.86484669,3358.2,3357.2,0.96134719]
[1768403696743,13.05971787,3358.2,3356.9,2.97893387]
[1768403696943,9.84269338,3358.2,3357.1,0.355]
[1768403697240,0.02242918,3358.1,3357.1,3.33372032]
[1768403697635,0.02242918,3358.1,3357.1,0.355]
[1768403697831,11.16006986,3358.2,3357.1,0.355]
[1768403698149,0.02242918,3358.1,3357.1,0.355]
[1768403698343,3.21702449,3358.1,3357.0,0.355]
[1768403698638,5.95592614,3358.0,3357.0,0.355]
[1768403698839,9.17295063,3358.0,3356.5,0.41335409]
[1768403699042,3.21702449,3357.9,3356.6,0.355]
[1768403699242,5.95592614,3358.0,3356.8,3.21047119]
[1768403699471,5.95592614,3358.0,3356.9,3.34451059]
[1768403699750,5.95592614,3358.0,3356.9,3.34450272]
[1768403699921,5.95592614,3358.0,3356.9,3.34449868]
[1768403700121,5.95592614,3358.0,3356.9,0.36557959]
[1768403700660,0.02242918,3357.9,3356.4,3.21147119]
[1768403700864,0.02242918,3357.9,3356.5,0.355]
[1768403701154,3.21702449,3357.9,3356.5,3.33429284]
[1768403701320,0.005,3358.0,3356.6,3.56547119]
[1768403701522,0.02242918,3357.9,3356.7,0.3596265]
[1768403701946,0.02242918,3357.9,3355.0,3.21147119]
[1768403701947,3.21702449,3357.7,3355.0,3.21147119]
[1768403702276,3.21702449,3357.7,3355.7,3.21047119]
[1768403702455,0.005,3358.0,3356.4,3.21047119]
[1768403702772,3.887,3358.2,3357.2,3.30079591]
[1768403702933,3.33107141,3358.4,3357.4,3.30079591]
[1768403703133,4.6444231,3358.7,3357.4,3.30079591]
[1768403703134,2.97943377,3358.6,3357.5,0.355]
[1768403703336,0.02242918,3358.5,3356.8,3.21047119]
[1768403703536,3.23945367,3358.5,3356.5,0.33007959]
[1768403703768,3.23945367,3358.5,3356.4,0.355]
[1768403703769,3.21702449,3358.3,3356.4,0.355]
[1768403703979,0.27799224,3358.2,3356.4,0.355]
[1768403704161,3.21702449,3358.3,3356.4,0.355]
[1768403704351,3.21702449,3358.1,3356.5,0.355]
[1768403704737,5.95592614,3358.0,3356.5,0.355]
[1768403704973,2.97796307,3358.0,3356.6,3.21047119]
[1768403705360,5.95592614,3358.0,3356.6,3.21047119]
[1768403705537,5.95592614,3358.0,3356.7,0.355]
[1768403705538,8.93388921,3358.0,3356.7,0.355]
[1768403705737,5.95592614,3358.0,3356.8,0.355]
[1768403706062,0.02242918,3357.9,3356.9,0.355]
[1768403706263,5.95592614,3358.0,3356.8,0.355]
[1768403706443,9.56698182,3358.0,3356.8,0.355]
[1768403706640,9.56698182,3358.0,3355.6,0.09032472]
[1768403706641,3.21702449,3357.9,3355.9,2.97982222]
[1768403706844,3.21702449,3357.7,3355.6,3.21047119]
[1768403707060,3.60781779,3357.6,3355.7,0.32104712]
[1768403707361,3.21702449,3357.0,3355.4,0.355]
[1768403707555,3.21702449,3356.8,3355.4,0.35407142]
[1768403707760,3.60403088,3356.7,3355.0,0.001]
[1768403708000,3.21702449,3356.7,3355.0,0.001]
[1768403708352,0.375,3356.8,3355.1,0.355]
[1768403708784,3.21702449,3356.6,3355.0,0.001]
[1768403709259,3.21702449,3356.6,3355.1,0.355]
[1768403709455,4.46996186,3356.5,3355.0,0.001]
[1768403709660,3.21702449,3356.4,3355.0,0.001]
[1768403709958,1.25293737,3356.5,3355.0,0.001]
[1768403710759,3.21702449,3356.3,3355.0,0.001]
[1768403710958,3.21702449,3356.1,3355.0,0.001]
[1768403711185,3.59202449,3356.1,3355.0,0.001]
[1768403711576,5.95876534,3356.4,3355.0,0.001]
[1768403711991,8.93814801,3356.4,3355.1,0.355]
[1768403712169,16.51286616,3356.4,3355.0,0.001]
[1768403712374,13.53348349,3356.4,3355.0,0.001]
[1768403712987,16.51286616,3356.4,3355.0,0.356]
[1768403713165,13.53348349,3356.4,3355.0,0.356]
[1768403713360,2.97938267,3356.4,3355.1,0.02980537]
[1768403713562,8.93575194,3357.3,3355.1,3.24027656]
[1768403713788,0.02242918,3357.2,3355.1,3.21047119]
[1768403713973,8.93575194,3357.3,3355.1,3.21047119]
[1768403714296,0.02242918,3357.2,3355.3,3.21047119]
[1768403714518,8.93575194,3357.3,3355.4,0.32104712]
[1768403714665,8.93575194,3357.3,3355.4,0.67604712]
[1768403714985,8.93575194,3357.3,3355.4,3.65624246]
[1768403715292,12.15277643,3357.3,3355.4,3.65624246]
[1768403715594,1.25277764,3357.2,3355.5,0.98470786]
[1768403715763,3.21702449,3357.1,3355.5,0.98470786]
[1768403715967,3.21702449,3357.1,3355.6,0.355]
[1768403716169,3.30734921,3357.0,3355.5,0.356]
[1768403716394,3.61445367,3356.9,3355.0,0.001]
[1768403716804,8.93734917,3356.7,3355.0,0.001]
[1768403716960,3.21702449,3356.5,3355.0,0.001]
[1768403717162,3.21702449,3356.3,3355.0,0.001]
[1768403717368,3.21702449,3356.1,3355.0,0.001]
[1768403717681,3.23945367,3356.0,3355.0,0.001]
[1768403717899,0.375,3355.9,3355.0,0.001]
[1768403718103,3.21702449,3355.7,3353.3,2.9821277]
[1768403718325,3.21702449,3355.5,3353.5,3.21047119]
[1768403718529,0.02242918,3355.8,3353.6,3.63754218]
[1768403718709,0.02242918,3355.8,3353.6,3.99254218]
[1768403718710,3.61445367,3355.8,3353.6,3.99254218]
[1768403718912,3.61445367,3355.8,3353.6,0.42707099]
[1768403718913,3.21702449,3355.3,3353.6,0.42707099]
[1768403719230,0.375,3355.3,3353.6,2.98186992]
[1768403719528,3.23945367,3355.6,3353.5,2.98189749]
[1768403719702,3.30734921,3355.2,3353.6,0.355]
[1768403720028,3.21702449,3355.2,3353.3,7.14e-05]
[1768403720227,3.21702449,3355.0,3353.3,7.14e-05]
[1768403720409,0.33073492,3354.9,3353.4,0.356]
[1768403720620,3.57783829,3354.9,3353.3,7.14e-05]
[1768403720803,5.96160724,3354.8,3353.7,0.001]
[1768403721000,8.94241086,3354.8,3353.7,0.001]
[1768403721230,1.26287801,3354.7,3353.7,0.001]
[1768403721533,8.94241086,3354.8,3353.7,0.001]
[1768403721827,8.94241086,3354.8,3353.3,7.14e-05]
[1768403722049,12.04496062,3354.8,3353.3,7.14e-05]
[1768403722329,3.10254976,3354.2,3352.4,2.98286529]
[1768403722533,7.05160212,3354.6,3352.5,0.33388653]
[1768403722534,0.375,3354.4,3352.5,0.33388653]
[1768403722837,0.375,3354.4,3351.8,2.98341978]
[1768403722838,3.10254976,3353.9,3351.4,3.10621671]
[1768403723053,3.10254976,3353.9,3350.4,0.09032472]
[1768403723054,3.10254976,3353.7,3351.5,3.40172937]
[1768403723197,3.10254976,3353.7,3351.5,2.51639199]
[1768403723407,0.34775498,3353.6,3351.8,2.98341512]
[1768403723753,7.05160212,3352.8,3350.7,3.01589199]
[1768403723915,3.47754976,3353.2,3350.8,3.4017356]
[1768403724240,0.375,3353.6,3351.0,3.01589199]
[1768403724535,3.47754976,3353.6,3351.4,3.01589199]
[1768403725028,3.47754976,3353.6,3350.4,2.98465348]
[1768403725029,3.10254976,3353.4,3350.9,3.01589199]
[1768403725230,3.10254976,3353.0,3351.0,0.6565892]
[1768403725433,3.10254976,3353.0,3351.0,0.3015892]
[1768403725602,3.10254976,3353.0,3351.1,0.355]
[1768403725819,0.34775498,3352.9,3351.2,0.02984005]
[1768403726023,0.34775498,3352.9,3351.3,0.356]
[1768403726223,0.34775498,3352.9,3351.0,0.3015892]
[1768403726439,0.34775498,3352.9,3351.1,0.356]
[1768403726641,0.34775498,3352.9,3351.5,2.98372978]
[1768403726844,0.34775498,3352.9,3351.0,0.3015892]
[1768403726845,5.96516344,3352.8,3351.0,0.3015892]
[1768403727022,5.96516344,3352.8,3351.2,2.98398622]
[1768403727223,5.96516344,3352.8,3351.1,3.34007573]
[1768403727420,8.94774516,3352.8,3350.6,3.10621671]
[1768403727625,8.94774516,3352.8,3350.9,2.98424687]
[1768403727922,5.96516344,3352.8,3351.0,0.356]
[1768403728126,8.94774516,3352.8,3351.1,2.98403665]
[1768403728340,8.94774516,3352.8,3351.2,0.356]
[1768403728541,2.98258172,3352.8,3351.3,0.38583916]
[1768403728720,2.98258172,3352.8,3351.4,2.98380596]
[1768403728721,5.96516344,3352.8,3351.4,2.98380596]
[1768403728948,5.96516344,3352.8,3351.5,0.98837964]
[1768403729145,5.96516344,3352.8,3351.6,0.356]
[1768403729532,5.96480762,3353.0,3351.6,0.356]
[1768403729731,5.96480762,3353.0,3350.7,0.31062167]
[1768403729732,7.05160212,3352.4,3350.7,0.31062167]
[1768403729957,0.376,3352.3,3350.8,3.37189199]
[1768403730319,5.96480762,3353.0,3351.5,2.98371404]
[1768403730551,0.02242918,3352.9,3351.4,3.01589199]
[1768403730753,5.96480762,3353.0,3351.5,0.356]
[1768403730949,0.376,3353.3,3350.6,0.09032472]
[1768403730950,5.96516344,3352.8,3351.6,0.6931892]
[1768403731154,8.94774516,3352.8,3351.3,0.356]
[1768403731455,9.4437132,3352.8,3351.2,0.356]
[1768403731753,5.96516344,3352.8,3351.0,3.10621671]
[1768403731953,2.98222593,3353.2,3351.7,3.01589199]
[1768403732153,0.02242918,3353.1,3351.7,3.01589199]
[1768403732458,5.96356262,3353.7,3351.8,0.356]
[1768403732656,6.2738176,3353.7,3351.9,1.58828062]
[1768403732857,6.2738176,3353.7,3352.1,2.98320455]
[1768403733161,9.25559891,3353.7,3352.2,0.45714852]
[1768403733398,15.33992998,3353.7,3352.0,0.356]
[1768403733676,10.15415188,3353.6,3352.0,0.356]
[1768403733842,0.376,3353.5,3352.0,0.356]
[1768403734177,0.02242918,3353.4,3352.0,0.356]
[1768403734374,0.35009789,3353.3,3352.0,3.33928104]
[1768403734575,0.02242918,3353.2,3351.1,3.01589199]
[1768403734746,3.10254976,3353.0,3351.4,2.98377096]
[1768403734939,5.96498552,3352.9,3352.3,0.001]
[1768403735184,3.10254976,3352.7,3350.6,3.01589199]
[1768403735475,3.10254976,3352.3,3350.4,2.98465203]
[1768403735679,0.31025498,3352.2,3350.5,0.2984652]
[1768403735879,0.02242918,3352.1,3350.5,0.2984652]
[1768403736050,3.12497894,3352.1,3349.9,6.00101495]
[1768403736242,0.31025498,3352.2,3350.6,2.98447285]
[1768403736442,0.376,3352.3,3350.7,0.356]
[1768403736672,3.10254976,3352.6,3351.2,2.98399945]
[1768403736875,2.98242383,3353.0,3351.2,8.98389716]
[1768403737093,5.96484766,3353.0,3351.3,4.56869587]
[1768403737373,0.02242918,3352.9,3351.4,0.356]
[1768403737583,5.96484766,3353.0,3351.5,0.356]
[1768403737745,5.96484766,3353.0,3351.6,0.15528039]
[1768403738164,2.98213699,3353.3,3351.6,3.17117238]
[1768403738444,2.98174927,3353.8,3351.6,3.17117238]
[1768403738445,2.98187022,3353.6,3351.6,3.2614971]
[1768403738766,5.96285142,3354.1,3351.6,3.2614971]
[1768403738938,5.963207,3353.9,3352.0,3.01589199]
[1768403739142,5.963207,3353.9,3352.1,3.37189199]
[1768403739143,0.02242918,3353.8,3352.1,3.37189199]
[1768403739342,0.02242918,3353.8,3352.1,3.01589199]
[1768403739584,0.02242918,3353.8,3352.2,1.55260396]
[1768403739743,12.20275676,3353.9,3352.2,1.19660396]
[1768403740071,9.06575676,3353.9,3352.3,0.356]
[1768403740249,0.02242918,3353.8,3352.3,0.356]
[1768403740655,0.02242918,3353.8,3352.0,3.01589199]
[1768403740867,5.96374044,3353.6,3351.8,5.96694312]
[1768403741068,2.98187022,3353.6,3351.9,1.01372817]
[1768403741256,2.9816035,3353.9,3352.0,3.01589199]
[1768403741459,5.96321708,3353.9,3352.0,3.01589199]
[1768403741699,2.98152956,3354.0,3352.2,3.01589199]
[1768403741885,0.02242918,3353.9,3352.2,3.01589199]
[1768403742190,0.02242918,3353.9,3352.1,1.30703596]
[1768403742383,0.89670179,3353.8,3352.2,0.356]
[1768403742699,0.89670179,3353.8,3352.2,3.37189199]
[1768403742862,5.96305912,3354.0,3352.2,3.37189199]
[1768403743061,5.96285142,3354.1,3352.3,8.98194513]
[1768403743262,3.12497894,3354.0,3352.4,0.356]
[1768403743465,5.96285142,3354.1,3352.5,0.356]
[1768403743664,0.63388514,3354.0,3352.6,0.63549186]
[1768403745166,5.963207,3353.9,3352.6,0.63549186]
[1768403745364,0.02242918,3353.8,3352.6,0.63549186]
[1768403745599,3.47854976,3353.7,3351.9,3.01589199]
[1768403745794,3.47854976,3353.7,3352.2,2.98305506]
[1768403746011,3.10254976,3353.5,3351.4,3.01589199]
[1768403746178,3.21530366,3353.4,3351.5,0.356]
[1768403746499,0.376,3353.7,3351.2,2.9839838]
[1768403746500,3.10254976,3353.2,3351.6,0.68997898]
[1768403746683,3.513,3353.7,3351.6,3.37189199]
[1768403746684,3.47854976,3353.7,3351.6,3.37189199]
[1768403746884,0.27712595,3353.6,3352.0,2.98323088]
[1768403747085,3.47854976,3353.7,3351.6,3.01589199]
[1768403747398,8.94587742,3353.5,3351.7,0.6575892]
[1768403747599,0.02242918,3353.4,3351.8,2.98347156]
[1768403747774,3.12497894,3353.4,3351.7,3.28514493]
[1768403747970,5.96376258,3353.6,3352.0,3.01589199]
[1768403748300,3.12497894,3353.4,3351.3,3.01589199]
[1768403748518,3.10254976,3353.2,3351.4,0.356]
[1768403748814,0.376,3353.3,3351.6,2.98363067]
[1768403749020,3.47854976,3353.3,3351.6,0.356]
[1768403749210,8.94694461,3353.1,3351.6,0.356]
[1768403749407,8.94694461,3353.1,3351.6,2.98363854]
[1768403749597,8.94694461,3353.1,3351.6,3.33963854]
[1768403750020,5.96462974,3353.1,3351.6,6.32428814]
[1768403750322,0.002,3352.9,3351.7,0.356]
[1768403750490,0.002,3352.9,3351.8,0.33406385]
[1768403751036,0.002,3352.9,3351.8,0.69006385]
[1768403751187,0.002,3352.9,3352.0,5.9665871]
[1768403751816,0.002,3352.9,3352.0,2.98329355]
[1768403752176,0.002,3352.9,3352.0,0.356]
[1768403752285,0.002,3352.9,3352.1,0.3673412]
[1768403752489,0.002,3352.9,3351.8,0.33406385]
[1768403752490,0.002,3352.9,3352.0,0.356]
[1768403753427,0.002,3352.9,3352.1,2.98320455]
[1768403754296,0.002,3352.9,3352.0,3.33928625]
[1768403754706,0.002,3352.9,3352.0,6.3225798]
[1768403754903,0.002,3353.2,3352.1,3.33024518]
[1768403755102,0.002,3353.2,3352.1,3.96250316]
[1768403755306,0.002,3353.2,3352.2,3.33905119]
[1768403755712,0.002,3353.2,3352.2,6.32216675]
[1768403756797,0.002,3353.2,3352.2,3.33905119]
[1768403757003,0.002,3353.2,3352.3,1.02848262]
[1768403757528,0.002,3353.2,3352.3,4.01145005]
[1768403758028,0.002,3353.2,3352.3,1.02848262]
[1768403758534,0.002,3353.2,3352.4,0.357]
[1768403758721,0.002,3353.2,3351.6,0.001]
[1768403758722,6.45687715,3352.8,3351.6,0.001]
[1768403758918,2.165,3353.2,3351.6,0.001]
[1768403758919,0.376,3352.9,3351.6,0.001]
[1768403759220,0.376,3352.9,3351.9,2.98334633]
[1768403759416,2.98258172,3352.8,3352.0,0.59668871]
[1768403759600,0.376,3352.9,3352.0,3.57998207]
[1768403759798,3.35853453,3352.9,3352.0,0.59668871]
[1768403760000,5.96506906,3352.9,3352.0,0.59668871]
[1768403760234,5.96506906,3352.9,3351.6,0.001]
[1768403760527,3.00474405,3353.1,3352.0,6.3235871]
[1768403760707,0.02242918,3353.1,3352.0,9.65383228]
[1768403760897,0.002,3353.2,3352.1,3.33024518]
[1768403761097,0.002,3353.2,3352.2,3.33024518]
[1768403761534,0.002,3353.2,3352.3,6.32305314]
[1768403761732,2.9831042,3354.5,3352.8,3.33024518]
[1768403761946,0.02242918,3354.4,3352.3,9.29629832]
[1768403762243,4.49482436,3354.3,3352.4,1.03520063]
[1768403762468,3.62048135,3354.2,3352.2,2.98308728]
[1768403762618,0.27817502,3354.1,3352.3,0.357]
[1768403762939,0.27817502,3354.0,3352.3,0.357]
[1768403763245,0.27817502,3353.9,3352.3,1.02403607]
[1768403763537,3.31987715,3354.2,3352.3,1.02403607]
[1768403763733,8.9445438,3354.0,3352.3,4.00703529]
[1768403763922,1.66113526,3353.9,3352.4,1.03203818]
[1768403764134,2.9815146,3354.0,3352.4,1.03203818]
[1768403764504,2.9815146,3354.0,3352.4,4.36228336]
[1768403764902,0.02242918,3353.9,3352.5,0.357]
[1768403765112,0.8966973,3353.8,3352.6,0.357]
[1768403765308,0.02242918,3353.7,3352.6,0.357]
[1768403765521,5.9630292,3354.0,3352.6,0.357]
[1768403765738,0.002,3353.9,3352.7,2.98267068]
[1768403766048,0.02242918,3353.8,3352.3,1.02503607]
[1768403766204,0.02242918,3353.7,3352.3,0.001]
[1768403766404,3.31987715,3353.5,3351.6,0.001]
[1768403766630,0.65452118,3353.4,3351.7,2.98354106]
[1768403766839,0.27852118,3353.3,3351.6,3.36108167]
[1768403767018,0.27852118,3353.3,3351.9,2.98335519]
[1768403767219,0.27852118,3353.3,3352.1,2.98317671]
[1768403767449,0.27852118,3353.3,3352.0,2.98326477]